fUSD/lending_fUSD_20250504
["ID","MTS","AMOUNT","RATE_DAILY","PERIOD"]
[359827838,1746360653625,-500.0,0.00019829,2]
[359827840,1746360653635,-500.0,0.00019829,2]
[359827842,1746360653645,-500.0,0.00019829,2]
[359827844,1746360653655,-500.0,0.00019829,2]
[359827846,1746360653666,-500.0,0.00019829,2]
[359827848,1746360653676,-500.0,0.00019829,2]
[359827850,1746360653687,-500.0,0.00019829,2]
[359827852,1746360653697,-500.0,0.00019829,2]
[359827854,1746360653707,-500.0,0.00019829,2]
[359827856,1746360653718,-500.0,0.00019829,2]
[359827877,1746360653912,-500.0,0.00019829,2]
[359827879,1746360653923,-500.0,0.00019829,2]
[359827881,1746360653932,-500.0,0.00019829,2]
[359827883,1746360653942,-500.0,0.00019829,2]
[359827885,1746360653952,-500.0,0.00019829,2]
[359827887,1746360653962,-500.0,0.00019829,2]
[359827889,1746360653972,-271.1812886,0.00019829,2]
[359827891,1746360653982,-500.0,0.00019829,2]
[359827893,1746360653991,-500.0,0.00019829,2]
[359827895,1746360654000,-439.82690202,0.00019829,2]
[359827897,1746360654010,-500.0,0.00019829,2]
[359827899,1746360654020,-500.0,0.00019829,2]
[359827901,1746360654029,-500.0,0.00019829,2]
[359827903,1746360654038,-150.0,0.00019829,2]
[359827905,1746360654048,-12500.0,0.0001983,2]
[359827907,1746360654058,-2026.1328534,0.00019834,2]
[359827909,1746360654068,-330.05299834,0.00019834,2]
[359827911,1746360654077,-500.0,0.00019834,2]
[359827913,1746360654087,-450.0,0.00019835,2]
[359827915,1746360654097,-205.47,0.00019835,2]
[359827917,1746360654107,-450.0,0.00019835,2]
[359827919,1746360654117,-450.0,0.00019835,2]
[359827921,1746360654126,-450.0,0.00019835,2]
[359827923,1746360654135,-510.99,0.00019835,2]
[359827925,1746360654144,-450.0,0.00019835,2]
[359827927,1746360654154,-450.0,0.00019835,2]
[359827929,1746360654163,-450.0,0.00019835,2]
[359827931,1746360654173,-629.87,0.00019835,2]
[359827933,1746360654183,-450.0,0.00019835,2]
[359827935,1746360654192,-450.0,0.00019835,2]
[359827937,1746360654202,-411.5546904,0.00019835,2]
[359827939,1746360654211,-450.0,0.00019835,2]
[359827941,1746360654221,-363.41,0.00019835,2]
[359827943,1746360654231,-450.0,0.00019835,2]
[359827945,1746360654242,-450.0,0.00019835,2]
[359827947,1746360654251,-450.0,0.00019835,2]
[359827949,1746360654260,-900.42,0.00019835,2]
[359827951,1746360654270,-450.0,0.00019835,2]
[359827953,1746360654281,-450.0,0.00019835,2]
[359827955,1746360654291,-450.0,0.00019835,2]
[359827957,1746360654301,-450.0,0.00019835,2]
[359827959,1746360654311,-325.59,0.00019835,2]
[359827961,1746360654321,-450.0,0.00019835,2]
[359827963,1746360654331,-450.0,0.00019835,2]
[359827965,1746360654341,-539.41,0.00019835,2]
[359827967,1746360654350,-450.0,0.00019835,2]
[359827969,1746360654360,-450.0,0.00019835,2]
[359827971,1746360654369,-450.0,0.00019835,2]
[359827973,1746360654379,-187.9,0.00019835,2]
[359827975,1746360654388,-1044.73,0.00019835,2]
[359827977,1746360654397,-450.0,0.00019835,2]
[359827979,1746360654406,-452.35,0.00019835,2]
[359827981,1746360654416,-450.0,0.00019835,2]
[359827983,1746360654425,-519.67,0.00019835,2]
[359827985,1746360654435,-365.18,0.00019835,2]
[359827987,1746360654445,-502.4,0.00019835,2]
[359827989,1746360654454,-450.0,0.00019835,2]
[359827991,1746360654464,-450.0,0.00019835,2]
[359827993,1746360654474,-662.38,0.00019835,2]
[359827995,1746360654484,-450.0,0.00019835,2]
[359827997,1746360654494,-450.0,0.00019835,2]
[359827999,1746360654503,-450.0,0.00019835,2]
[359828001,1746360654514,-450.0,0.00019835,2]
[359828003,1746360654523,-450.0,0.00019835,2]
[359828005,1746360654533,-450.0,0.00019835,2]
[359828007,1746360654544,-450.0,0.00019835,2]
[359828010,1746360654554,-450.0,0.00019835,2]
[359828012,1746360654564,-439.47,0.00019835,2]
[359828014,1746360654574,-450.0,0.00019835,2]
[359828016,1746360654584,-450.0,0.00019835,2]
[359828017,1746360654593,-450.0,0.00019835,2]
[359828018,1746360654603,-1034.33,0.00019835,2]
[359828019,1746360654612,-450.0,0.00019835,2]
[359828020,1746360654621,-526.99,0.00019835,2]
[359828021,1746360654631,-450.0,0.00019835,2]
[359828022,1746360654640,-1032.73,0.00019835,2]
[359828023,1746360654649,-450.0,0.00019835,2]
[359828025,1746360654658,-450.0,0.00019835,2]
[359828026,1746360654668,-450.0,0.00019835,2]
[359828028,1746360654677,-450.0,0.00019835,2]
[359828030,1746360654687,-450.0,0.00019835,2]
[359828032,1746360654696,-450.0,0.00019835,2]
[359828034,1746360654706,-318.49,0.00019835,2]
[359828036,1746360654716,-450.0,0.00019835,2]
[359828038,1746360654725,-533.56,0.00019835,2]
[359828040,1746360654734,-491.19,0.00019835,2]
[359828042,1746360654744,-450.0,0.00019835,2]
[359828044,1746360654754,-450.0,0.00019835,2]
[359828046,1746360654763,-450.0,0.00019835,2]
[359828048,1746360654772,-450.0,0.00019835,2]
[359828050,1746360654782,-450.0,0.00019835,2]
[359828052,1746360654792,-450.0,0.00019835,2]
[359828054,1746360654801,-450.0,0.00019835,2]
[359828056,1746360654811,-883.23,0.00019835,2]
[359828058,1746360654820,-2359.28,0.00019835,2]
[359828060,1746360654829,-450.0,0.00019835,2]
[359828062,1746360654840,-450.0,0.00019835,2]
[359828064,1746360654849,-693.57,0.00019835,2]
[359828066,1746360654859,-884.08,0.00019835,2]
[359828068,1746360654869,-516.72,0.00019835,2]
[359828070,1746360654879,-450.0,0.00019835,2]
[359828072,1746360654888,-450.0,0.00019835,2]
[359828074,1746360654902,-450.0,0.00019835,2]
[359828076,1746360654911,-408.31623474,0.00019835,2]
[359828078,1746360654921,-323.91,0.00019835,2]
[359828080,1746360654931,-538.49,0.00019835,2]
[359828082,1746360654942,-450.0,0.00019835,2]
[359828084,1746360654951,-450.0,0.00019835,2]
[359828086,1746360654961,-450.0,0.00019835,2]
[359828088,1746360654971,-560.57,0.00019835,2]
[359828090,1746360654981,-558.02,0.00019835,2]
[359828092,1746360654990,-330.28,0.00019835,2]
[359828094,1746360655000,-478.15,0.00019835,2]
[359828096,1746360655011,-2319.74,0.00019835,2]
[359828098,1746360655021,-450.0,0.00019835,2]
[359828101,1746360655031,-579.73255732,0.00019835,2]
[359828102,1746360655041,-517.26,0.00019835,2]
[359828104,1746360655051,-450.0,0.00019835,2]
[359828106,1746360655061,-554.16,0.00019835,2]
[359828109,1746360655071,-256.09,0.00019835,2]
[359828110,1746360655080,-450.0,0.00019835,2]
[359828112,1746360655090,-450.0,0.00019835,2]
[359828114,1746360655099,-450.0,0.00019835,2]
[359828116,1746360655110,-1551.52,0.00019835,2]
[359828118,1746360655119,-696.15,0.00019835,2]
[359828121,1746360655129,-450.0,0.00019835,2]
[359828123,1746360655139,-1341.96,0.00019835,2]
[359828124,1746360655148,-424.79,0.00019835,2]
[359828127,1746360655158,-450.0,0.00019835,2]
[359828129,1746360655168,-456.26,0.00019835,2]
[359828131,1746360655178,-450.0,0.00019835,2]
[359828132,1746360655187,-2906.44,0.00019835,2]
[359828134,1746360655196,-450.0,0.00019835,2]
[359828136,1746360655206,-1562.43,0.00019835,2]
[359828138,1746360655216,-450.0,0.00019835,2]
[359828140,1746360655225,-161.33,0.00019835,2]
[359828143,1746360655235,-28603.87,0.00019835,2]
[359828145,1746360655245,-599.78,0.00019835,2]
[359828147,1746360655255,-450.0,0.00019835,2]
[359828149,1746360655264,-357.54,0.00019835,2]
[359828150,1746360655274,-1463.69,0.00019835,2]
[359828152,1746360655284,-916.91,0.00019835,2]
[359828155,1746360655293,-637.41,0.00019835,2]
[359828156,1746360655302,-2659.44,0.00019835,2]
[359828159,1746360655312,-450.0,0.00019835,2]
[359828161,1746360655322,-4777.55,0.00019835,2]
[359828163,1746360655332,-450.0,0.00019835,2]
[359828165,1746360655342,-450.0,0.00019835,2]
[359828167,1746360655351,-2266.13,0.00019835,2]
[359828169,1746360655361,-201.27,0.00019835,2]
[359828171,1746360655370,-450.0,0.00019835,2]
[359828173,1746360655380,-487.24,0.00019835,2]
[359828175,1746360655389,-195.68333519,0.00019836,2]
[359828177,1746360655398,-12500.0,0.00019838,2]
[359828179,1746360655410,-500.0,0.0001984,2]
[359828181,1746360655420,-2000.0,0.0001984,2]
[359828183,1746360655430,-200.0,0.0001984,2]
[359828185,1746360655439,-3105.95327328,0.00019845,2]
[359828187,1746360655448,-500.0,0.00019846,2]
[359828189,1746360655458,-12500.0,0.00019847,2]
[359828191,1746360655467,-12277.79707216,0.00019851,2]
[359828193,1746360655477,-301.50893152,0.00019852,2]
[359828195,1746360655486,-12500.0,0.00019856,2]
[359828197,1746360655496,-500.0,0.00019862,2]
[359828199,1746360655505,-151.0,0.00019863,2]
[359828201,1746360655514,-151.0,0.00019863,2]
[359828203,1746360655524,-151.0,0.00019863,2]
[359828204,1746360655533,-450.0,0.00019863,2]
[359828206,1746360655542,-450.0,0.00019863,2]
[359828208,1746360655552,-450.0,0.00019863,2]
[359828210,1746360655561,-450.0,0.00019863,2]
[359828212,1746360655571,-510.99,0.00019863,2]
[359828214,1746360655580,-543.52,0.00019863,2]
[359828216,1746360655589,-450.0,0.00019863,2]
[359828218,1746360655597,-450.0,0.00019863,2]
[359828220,1746360655607,-629.87,0.00019863,2]
[359828222,1746360655617,-450.0,0.00019863,2]
[359828224,1746360655627,-450.0,0.00019863,2]
[359828226,1746360655636,-296.63,0.00019863,2]
[359828228,1746360655646,-450.0,0.00019863,2]
[359828230,1746360655655,-450.0,0.00019863,2]
[359828232,1746360655665,-450.0,0.00019863,2]
[359828233,1746360655675,-900.42,0.00019863,2]
[359828234,1746360655685,-450.0,0.00019863,2]
[359828235,1746360655695,-450.0,0.00019863,2]
[359828236,1746360655705,-450.0,0.00019863,2]
[359828237,1746360655715,-450.0,0.00019863,2]
[359828238,1746360655725,-450.0,0.00019863,2]
[359828240,1746360655735,-450.0,0.00019863,2]
[359828241,1746360655743,-539.41,0.00019863,2]
[359828243,1746360655753,-450.0,0.00019863,2]
[359828245,1746360655762,-450.0,0.00019863,2]
[359828247,1746360655772,-450.0,0.00019863,2]
[359828249,1746360655781,-1044.73,0.00019863,2]
[359828251,1746360655791,-179.25417946,0.00019863,2]
[359828253,1746360655801,-452.35,0.00019863,2]
[359828255,1746360655810,-450.0,0.00019863,2]
[359828257,1746360655820,-450.0,0.00019863,2]
[359828259,1746360655830,-450.0,0.00019863,2]
[359828261,1746360655839,-662.38,0.00019863,2]
[359828264,1746360655850,-450.0,0.00019863,2]
[359828266,1746360655860,-450.0,0.00019863,2]
[359828267,1746360655869,-450.0,0.00019863,2]
[359828269,1746360655879,-450.0,0.00019863,2]
[359828271,1746360655889,-450.0,0.00019863,2]
[359828273,1746360655902,-450.0,0.00019863,2]
[359828275,1746360655912,-164.49,0.00019863,2]
[359828277,1746360655921,-450.0,0.00019863,2]
[359828279,1746360655931,-450.0,0.00019863,2]
[359828281,1746360655941,-325.62,0.00019863,2]
[359828283,1746360655951,-450.0,0.00019863,2]
[359828285,1746360655961,-1034.33,0.00019863,2]
[359828287,1746360655971,-526.99,0.00019863,2]
[359828289,1746360655981,-237.45,0.00019863,2]
[359828291,1746360655990,-1032.73,0.00019863,2]
[359828293,1746360656000,-450.0,0.00019863,2]
[359828295,1746360656011,-450.0,0.00019863,2]
[359828297,1746360656020,-450.0,0.00019863,2]
[359828299,1746360656031,-450.0,0.00019863,2]
[359828301,1746360656040,-450.0,0.00019863,2]
[359828303,1746360656050,-450.0,0.00019863,2]
[359828305,1746360656060,-450.0,0.00019863,2]
[359828307,1746360656069,-450.0,0.00019863,2]
[359828309,1746360656079,-450.0,0.00019863,2]
[359828311,1746360656088,-343.12,0.00019863,2]
[359828313,1746360656098,-450.0,0.00019863,2]
[359828315,1746360656108,-883.23,0.00019863,2]
[359828317,1746360656117,-2359.28,0.00019863,2]
[359828319,1746360656126,-450.0,0.00019863,2]
[359828321,1746360656136,-450.0,0.00019863,2]
[359828323,1746360656146,-693.57,0.00019863,2]
[359828325,1746360656155,-884.08,0.00019863,2]
[359828327,1746360656165,-450.0,0.00019863,2]
[359828329,1746360656176,-384.97,0.00019863,2]
[359828331,1746360656186,-450.0,0.00019863,2]
[359828333,1746360656195,-538.49,0.00019863,2]
[359828337,1746360656255,-450.0,0.00019863,2]
[359828338,1746360656265,-450.0,0.00019863,2]
[359828340,1746360656274,-450.0,0.00019863,2]
[359828341,1746360656284,-560.57,0.00019863,2]
[359828343,1746360656293,-558.02,0.00019863,2]
[359828345,1746360656303,-478.15,0.00019863,2]
[359828346,1746360656312,-2319.74,0.00019863,2]
[359828348,1746360656322,-450.0,0.00019863,2]
[359828349,1746360656332,-517.26,0.00019863,2]
[359828351,1746360656341,-450.0,0.00019863,2]
[359828353,1746360656351,-450.0,0.00019863,2]
[359828354,1746360656360,-450.0,0.00019863,2]
[359828356,1746360656369,-1551.52,0.00019863,2]
[359828357,1746360656378,-696.15,0.00019863,2]
[359828359,1746360656387,-450.0,0.00019863,2]
[359828360,1746360656396,-1341.96,0.00019863,2]
[359828362,1746360656406,-450.0,0.00019863,2]
[359828363,1746360656415,-456.26,0.00019863,2]
[359828365,1746360656424,-173.34,0.00019863,2]
[359828367,1746360656433,-2906.44,0.00019863,2]
[359828368,1746360656442,-450.0,0.00019863,2]
[359828370,1746360656451,-1562.43,0.00019863,2]
[359828372,1746360656460,-294.04,0.00019863,2]
[359828373,1746360656469,-28603.87,0.00019863,2]
[359828375,1746360656478,-450.0,0.00019863,2]
[359828376,1746360656487,-1463.69,0.00019863,2]
[359828378,1746360656497,-916.91,0.00019863,2]
[359828380,1746360656506,-637.41,0.00019863,2]
[359828381,1746360656515,-2659.44,0.00019863,2]
[359828383,1746360656524,-450.0,0.00019863,2]
[359828385,1746360656534,-4777.55,0.00019863,2]
[359828386,1746360656543,-348.69917208,0.00019863,2]
[359828388,1746360656552,-450.0,0.00019863,2]
[359828390,1746360656561,-2266.13,0.00019863,2]
[359828391,1746360656571,-450.0,0.00019863,2]
[359828393,1746360656581,-487.24,0.00019863,2]
[359828395,1746360656590,-12500.0,0.00019865,2]
[359828396,1746360656600,-12500.0,0.00019865,2]
[359828398,1746360656610,-195.68333519,0.00019868,2]
[359828400,1746360656619,-3105.95327328,0.00019873,2]
[359828401,1746360656628,-500.0,0.00019873,2]
[359828403,1746360656638,-500.0,0.00019873,2]
[359828404,1746360656647,-500.0,0.00019873,2]
[359828406,1746360656656,-500.0,0.00019873,2]
[359828408,1746360656665,-502.94552156,0.00019873,2]
[359828409,1746360656674,-500.0,0.00019873,2]
[359828411,1746360656683,-500.0,0.00019873,2]
[359828413,1746360656692,-501.90942623,0.00019873,2]
[359828414,1746360656702,-500.0,0.00019873,2]
[359828416,1746360656712,-500.0,0.00019873,2]
[359828418,1746360656721,-500.60466733,0.00019873,2]
[359828419,1746360656730,-302.01142521,0.00019873,2]
[359828421,1746360656739,-500.0,0.00019873,2]
[359828423,1746360656748,-500.0,0.00019873,2]
[359828424,1746360656756,-500.0,0.00019873,2]
[359828426,1746360656766,-500.0,0.00019873,2]
[359828427,1746360656776,-500.0,0.00019873,2]
[359828429,1746360656785,-243.83231524,0.00019873,2]
[359828431,1746360656794,-503.01916239,0.00019873,2]
[359828433,1746360656803,-500.42110426,0.00019873,2]
[359828435,1746360656812,-500.30362522,0.00019873,2]
[359828437,1746360656821,-500.0,0.00019873,2]
[359828439,1746360656830,-500.21059738,0.00019873,2]
[359828441,1746360656839,-500.0,0.00019873,2]
[359828443,1746360656848,-344.6693912,0.00019873,2]
[359828444,1746360656858,-162.74641742,0.00019873,2]
[359828447,1746360656867,-629.19071202,0.00019873,2]
[359828448,1746360656876,-153.93340078,0.00019873,2]
[359828449,1746360656886,-500.0,0.00019873,2]
[359828450,1746360656898,-500.0,0.00019873,2]
[359828451,1746360656907,-12500.0,0.00019874,2]
[359828452,1746360656916,-12500.0,0.00019874,2]
[359828453,1746360656926,-12277.79707216,0.00019876,2]
[359828454,1746360656935,-12500.0,0.00019882,2]
[359828455,1746360656945,-12500.0,0.00019882,2]
[359828456,1746360656955,-500.0,0.00019889,2]
[359828457,1746360656964,-500.0,0.00019889,2]
[359828458,1746360656974,-450.0,0.0001989,2]
[359828459,1746360656984,-450.0,0.0001989,2]
[359828460,1746360656993,-510.99,0.0001989,2]
[359828462,1746360657003,-450.0,0.0001989,2]
[359828463,1746360657012,-2053.874,0.0001989,2]
[359828465,1746360657021,-187.105,0.0001989,2]
[359828467,1746360657029,-629.87,0.0001989,2]
[359828469,1746360657039,-450.0,0.0001989,2]
[359828471,1746360657048,-450.0,0.0001989,2]
[359828473,1746360657057,-416.33,0.0001989,2]
[359828475,1746360657067,-450.0,0.0001989,2]
[359828477,1746360657076,-569.41089543,0.0001989,2]
[359828479,1746360657086,-900.42,0.0001989,2]
[359828481,1746360657095,-450.0,0.0001989,2]
[359828483,1746360657104,-450.0,0.0001989,2]
[359828485,1746360657113,-450.0,0.0001989,2]
[359828487,1746360657123,-450.0,0.0001989,2]
[359828489,1746360657132,-450.0,0.0001989,2]
[359828491,1746360657141,-450.0,0.0001989,2]
[359828493,1746360657149,-539.41,0.0001989,2]
[359828495,1746360657159,-366.16,0.0001989,2]
[359828497,1746360657168,-450.0,0.0001989,2]
[359828499,1746360657177,-450.0,0.0001989,2]
[359828501,1746360657186,-1044.73,0.0001989,2]
[359828503,1746360657196,-452.35,0.0001989,2]
[359828505,1746360657205,-450.0,0.0001989,2]
[359828507,1746360657214,-450.0,0.0001989,2]
[359828509,1746360657223,-450.0,0.0001989,2]
[359828511,1746360657232,-662.38,0.0001989,2]
[359828513,1746360657241,-450.0,0.0001989,2]
[359828515,1746360657251,-545.28,0.0001989,2]
[359828517,1746360657261,-219.41400175,0.0001989,2]
[359828519,1746360657270,-450.0,0.0001989,2]
[359828521,1746360657280,-571.67,0.0001989,2]
[359828523,1746360657290,-450.0,0.0001989,2]
[359828525,1746360657300,-450.0,0.0001989,2]
[359828527,1746360657309,-1034.33,0.0001989,2]
[359828529,1746360657319,-526.99,0.0001989,2]
[359828530,1746360657328,-1032.73,0.0001989,2]
[359828532,1746360657337,-450.0,0.0001989,2]
[359828534,1746360657347,-450.0,0.0001989,2]
[359828536,1746360657357,-498.18,0.0001989,2]
[359828539,1746360657366,-345.73006051,0.0001989,2]
[359828540,1746360657376,-450.0,0.0001989,2]
[359828542,1746360657385,-450.0,0.0001989,2]
[359828544,1746360657394,-450.0,0.0001989,2]
[359828546,1746360657403,-450.0,0.0001989,2]
[359828548,1746360657412,-450.0,0.0001989,2]
[359828550,1746360657421,-450.0,0.0001989,2]
[359828552,1746360657430,-883.23,0.0001989,2]
[359828554,1746360657439,-2359.28,0.0001989,2]
[359828556,1746360657449,-450.0,0.0001989,2]
[359828558,1746360657458,-450.0,0.0001989,2]
[359828560,1746360657467,-693.57,0.0001989,2]
[359828562,1746360657476,-884.08,0.0001989,2]
[359828564,1746360657486,-274.31456417,0.0001989,2]
[359828566,1746360657495,-450.0,0.0001989,2]
[359828568,1746360657504,-538.49,0.0001989,2]
[359828570,1746360657513,-210.93,0.0001989,2]
[359828572,1746360657522,-450.0,0.0001989,2]
[359828574,1746360657531,-450.0,0.0001989,2]
[359828576,1746360657540,-560.57,0.0001989,2]
[359828578,1746360657551,-558.02,0.0001989,2]
[359828580,1746360657560,-478.15,0.0001989,2]
[359828582,1746360657570,-2319.74,0.0001989,2]
[359828584,1746360657579,-151.89,0.0001989,2]
[359828586,1746360657588,-517.26,0.0001989,2]
[359828588,1746360657598,-450.0,0.0001989,2]
[359828590,1746360657607,-450.0,0.0001989,2]
[359828592,1746360657616,-450.0,0.0001989,2]
[359828594,1746360657626,-1551.52,0.0001989,2]
[359828596,1746360657635,-696.15,0.0001989,2]
[359828598,1746360657644,-450.0,0.0001989,2]
[359828600,1746360657653,-1341.96,0.0001989,2]
[359828602,1746360657663,-450.0,0.0001989,2]
[359828604,1746360657672,-456.26,0.0001989,2]
[359828606,1746360657681,-2906.44,0.0001989,2]
[359828608,1746360657690,-450.0,0.0001989,2]
[359828610,1746360657698,-1562.43,0.0001989,2]
[359828612,1746360657707,-28603.87,0.0001989,2]
[359828614,1746360657716,-450.0,0.0001989,2]
[359828615,1746360657725,-1463.69,0.0001989,2]
[359828617,1746360657734,-916.91,0.0001989,2]
[359828619,1746360657743,-637.41,0.0001989,2]
[359828621,1746360657752,-2659.44,0.0001989,2]
[359828623,1746360657761,-450.0,0.0001989,2]
[359828625,1746360657770,-4777.55,0.0001989,2]
[359828627,1746360657780,-2266.13,0.0001989,2]
[359828629,1746360657789,-450.0,0.0001989,2]
[359828631,1746360657799,-487.24,0.0001989,2]
[359828633,1746360657807,-12500.0,0.00019891,2]
[359828635,1746360657816,-12500.0,0.00019891,2]
[359828637,1746360657825,-12500.0,0.000199,2]
[359828639,1746360657833,-195.68333519,0.000199,2]
[359828641,1746360657842,-3105.95327328,0.000199,2]
[359828643,1746360657851,-12500.0,0.000199,2]
[359828645,1746360657861,-12277.79707216,0.000199,2]
[359828647,1746360657871,-9967.67977762,0.000199,2]
[359828649,1746360657880,-762.24656847,0.000199,2]
[359828651,1746360657889,-164.335077,0.000199,2]
[359828653,1746360657902,-205.57268741,0.000199,3]
[359828655,1746360657911,-1208.0,0.00019916,2]
[359828657,1746360657920,-797.0,0.00019916,2]
[359828659,1746360657930,-915.0,0.00019916,2]
[359828661,1746360657941,-1451.0,0.00019916,2]
[359828663,1746360657951,-1657.0,0.00019916,2]
[359828665,1746360657960,-581.0,0.00019916,2]
[359828667,1746360657969,-550.0,0.00019916,2]
[359828669,1746360657980,-298.963546,0.00019917,2]
[359828671,1746360657989,-151.0,0.00019917,2]
[359828673,1746360657999,-151.0,0.00019917,2]
[359828675,1746360658008,-450.0,0.00019917,2]
[359828677,1746360658017,-450.0,0.00019917,2]
[359828679,1746360658026,-510.99,0.00019917,2]
[359828681,1746360658035,-450.0,0.00019917,2]
[359828683,1746360658045,-629.87,0.00019917,2]
[359828685,1746360658054,-450.0,0.00019917,2]
[359828687,1746360658064,-450.0,0.00019917,2]
[359828689,1746360658074,-450.0,0.00019917,2]
[359828691,1746360658083,-900.42,0.00019917,2]
[359828693,1746360658093,-450.0,0.00019917,2]
[359828695,1746360658102,-450.0,0.00019917,2]
[359828697,1746360658112,-450.0,0.00019917,2]
[359828699,1746360658122,-354.28,0.00019917,2]
[359828701,1746360658131,-450.0,0.00019917,2]
[359828703,1746360658141,-450.0,0.00019917,2]
[359828705,1746360658150,-539.41,0.00019917,2]
[359828707,1746360658160,-450.0,0.00019917,2]
[359828709,1746360658169,-450.0,0.00019917,2]
[359828711,1746360658179,-1044.73,0.00019917,2]
[359828713,1746360658189,-452.35,0.00019917,2]
[359828715,1746360658199,-336.51,0.00019917,2]
[359828717,1746360658208,-462.65,0.00019917,2]
[359828719,1746360658217,-450.0,0.00019917,2]
[359828721,1746360658227,-662.38,0.00019917,2]
[359828723,1746360658236,-450.0,0.00019917,2]
[359828725,1746360658246,-450.0,0.00019917,2]
[359828726,1746360658256,-450.0,0.00019917,2]
[359828729,1746360658266,-450.0,0.00019917,2]
[359828731,1746360658276,-1034.33,0.00019917,2]
[359828733,1746360658286,-526.99,0.00019917,2]
[359828735,1746360658295,-1032.73,0.00019917,2]
[359828737,1746360658305,-450.0,0.00019917,2]
[359828738,1746360658314,-450.0,0.00019917,2]
[359828740,1746360658324,-465.56,0.00019917,2]
[359828742,1746360658334,-155.07,0.00019917,2]
[359828744,1746360658344,-450.0,0.00019917,2]
[359828746,1746360658353,-450.0,0.00019917,2]
[359828749,1746360658364,-450.0,0.00019917,2]
[359828750,1746360658373,-450.0,0.00019917,2]
[359828753,1746360658383,-883.23,0.00019917,2]
[359828754,1746360658392,-2359.28,0.00019917,2]
[359828756,1746360658402,-588.0989024,0.00019917,2]
[359828758,1746360658411,-450.0,0.00019917,2]
[359828760,1746360658421,-693.57,0.00019917,2]
[359828762,1746360658431,-884.08,0.00019917,2]
[359828765,1746360658441,-450.0,0.00019917,2]
[359828767,1746360658451,-538.49,0.00019917,2]
[359828769,1746360658460,-450.0,0.00019917,2]
[359828771,1746360658470,-450.0,0.00019917,2]
[359828773,1746360658479,-560.57,0.00019917,2]
[359828775,1746360658488,-558.02,0.00019917,2]
[359828777,1746360658498,-478.15,0.00019917,2]
[359828779,1746360658507,-2319.74,0.00019917,2]
[359828781,1746360658516,-517.26,0.00019917,2]
[359828783,1746360658525,-401.88564381,0.00019917,2]
[359828785,1746360658535,-450.0,0.00019917,2]
[359828787,1746360658545,-450.0,0.00019917,2]
[359828789,1746360658555,-1551.52,0.00019917,2]
[359828791,1746360658564,-696.15,0.00019917,2]
[359828793,1746360658574,-450.0,0.00019917,2]
[359828795,1746360658583,-1341.96,0.00019917,2]
[359828797,1746360658592,-450.0,0.00019917,2]
[359828799,1746360658602,-456.26,0.00019917,2]
[359828801,1746360658611,-2906.44,0.00019917,2]
[359828803,1746360658621,-450.0,0.00019917,2]
[359828805,1746360658630,-1562.43,0.00019917,2]